Workbook

Sheet sheet1
A1: 附件：
A2: 兴义义龙2024年公开招聘事业单位工作人员总成绩及进入体检人员名单
A3: 招考单位名称 | B3: 报考岗位 | C3: 笔试成绩（折算成百分制后加上加分） | D3: 面试准考证号 | E3: 面试成绩 | F3: 总成绩 | G3: 是否进入体检
A4: 兴义市能源局 | B4: 22321410101煤矿安全生产技术服务中心 | C4: 62.50 | D4: 20240101 | E4: 70.80 | F4: =(C4*0.6)+(E4*0.4) -> 65.82 | G4: 是
A5: 兴义市应急管理局 | B5: 22321410201应急救援综合服务中心 | C5: 76.00 | D5: 20240102 | E5: 73.60 | F5: 75.04 | G5: 是
A6: 兴义市应急管理局 | B6: 22321410201应急救援综合服务中心 | C6: 74.33 | D6: 20240103 | E6: 71.00 | F6: 73.00
A7: 兴义市应急管理局 | B7: 22321410201应急救援综合服务中心 | C7: 71.50 | D7: 20240104 | E7: 72.20 | F7: 71.78
A8: 兴义市应急管理局 | B8: 22321410202应急技术服务中心 | C8: 75.50 | D8: 20240105 | E8: 74.40 | F8: 75.06 | G8: 是
A9: 兴义市应急管理局 | B9: 22321410202应急技术服务中心 | C9: 69.83 | D9: 20240106 | E9: 72.40 | F9: 70.86
A10: 兴义市应急管理局 | B10: 22321410202应急技术服务中心 | C10: 66.17 | D10: 20240107 | E10: 缺考 | F10: =C10*0.6 -> 39.70
A11: 兴义市应急管理局 | B11: 22321410203救灾救援物资保障中心 | C11: 70.17 | D11: 20240108 | E11: 76.80 | F11: =(C11*0.6)+(E11*0.4) -> 72.82 | G11: 是
A12: 兴义市应急管理局 | B12: 22321410203救灾救援物资保障中心 | C12: 69.67 | D12: 20240109 | E12: 75.00 | F12: =(C12*0.6)+(E12*0.4) -> 71.80
A13: 兴义市应急管理局 | B13: 22321410203救灾救援物资保障中心 | C13: 67.33 | D13: 20240110 | E13: 71.40 | F13: =(C13*0.6)+(E13*0.4) -> 68.96
A14: 兴义市自然资源局 | B14: 22321410301自然资源局泥凼自然资源所 | C14: 76.33 | D14: 20240111 | E14: 69.40 | F14: =(C14*0.6)+(E14*0.4) -> 73.56 | G14: 是
A15: 兴义市自然资源局 | B15: 22321410301自然资源局泥凼自然资源所 | C15: 73.50 | D15: 20240113 | E15: 70.80 | F15: =(C15*0.6)+(E15*0.4) -> 72.42
A16: 兴义市自然资源局 | B16: 22321410301自然资源局泥凼自然资源所 | C16: 74.50 | D16: 20240112 | E16: 缺考 | F16: =C16*0.6 -> 44.70
A17: 兴义市自然资源局 | B17: 22321410302地质灾害应急技术指导中心 | C17: 74.50 | D17: 20240114 | E17: 71.20 | F17: =(C17*0.6)+(E17*0.4) -> 73.18 | G17: 是
A18: 兴义市自然资源局 | B18: 22321410302地质灾害应急技术指导中心 | C18: 70.83 | D18: 20240116 | E18: 75.40 | F18: =(C18*0.6)+(E18*0.4) -> 72.66
A19: 兴义市自然资源局 | B19: 22321410302地质灾害应急技术指导中心 | C19: 72.67 | D19: 20240115 | E19: 缺考 | F19: =C19*0.6 -> 43.60
A20: 兴义市自然资源局 | B20: 22321410303自然资源局信息中心 | C20: 70.83 | D20: 20240118 | E20: 73.80 | F20: =(C20*0.6)+(E20*0.4) -> 72.02 | G20: 是
A21: 兴义市自然资源局 | B21: 22321410303自然资源局信息中心 | C21: 70.17 | D21: 20240119 | E21: 72.60 | F21: =(C21*0.6)+(E21*0.4) -> 71.14
A22: 兴义市自然资源局 | B22: 22321410303自然资源局信息中心 | C22: 71.67 | D22: 20240117 | E22: 缺考 | F22: =C22*0.6 -> 43.00
A23: 兴义市自然资源局 | B23: 22321410304不动产登记中心 | C23: 76.67 | D23: 20240120 | E23: 75.60 | F23: =(C23*0.6)+(E23*0.4) -> 76.24 | G23: 是
A24: 兴义市自然资源局 | B24: 22321410304不动产登记中心 | C24: 75.33 | D24: 20240121 | E24: 77.40 | F24: 76.16
A25: 兴义市自然资源局 | B25: 22321410304不动产登记中心 | C25: 74.83 | D25: 20240122 | E25: 68.00 | F25: 72.10
A26: 兴义市南盘江镇人民政府 | B26: 22321410401退役军人服务站 | C26: 67.83 | D26: 20240123 | E26: 69.80 | F26: 68.62 | G26: 是
A27: 兴义市南盘江镇人民政府 | B27: 22321410401退役军人服务站 | C27: 64.00 | D27: 20240124 | E27: 71.20 | F27: 66.88
A28: 兴义市白碗窑镇人民政府 | B28: 22321410501农业农村服务中心（乡村振兴服务中心） | C28: 60.17 | D28: 20240125 | E28: 72.60 | F28: 65.14 | G28: 是
A29: 兴义市白碗窑镇人民政府 | B29: 22321410502应急管理服务中心 | C29: 71.50 | D29: 20240126 | E29: 74.20 | F29: 72.58 | G29: 是
A30: 兴义市白碗窑镇人民政府 | B30: 22321410502应急管理服务中心 | C30: 68.83 | D30: 20240127 | E30: 73.00 | F30: 70.50
A31: 兴义市泥凼镇人民政府 | B31: 22321410601农业农村服务中心（乡村振兴服务中心） | C31: 74.00 | D31: 20240128 | E31: 75.00 | F31: 74.40 | G31: 是
A32: 兴义市泥凼镇人民政府 | B32: 22321410601农业农村服务中心（乡村振兴服务中心） | C32: 70.00 | D32: 20240131 | E32: 79.60 | F32: 73.84 | G32: 是
A33: 兴义市泥凼镇人民政府 | B33: 22321410601农业农村服务中心（乡村振兴服务中心） | C33: 71.17 | D33: 20240129 | E33: 75.20 | F33: 72.78
A34: 兴义市泥凼镇人民政府 | B34: 22321410601农业农村服务中心（乡村振兴服务中心） | C34: 70.50 | D34: 20240130 | E34: 缺考 | F34: =C34*0.6 -> 42.30
A35: 兴义市猪场坪镇人民政府 | B35: 22321410701党务政务服务中心 | C35: 72.17 | D35: 20240201 | E35: 79.60 | F35: =(C35*0.6)+(E35*0.4) -> 75.14 | G35: 是
A36: 兴义市猪场坪镇人民政府 | B36: 22321410701党务政务服务中心 | C36: 71.33 | D36: 20240202 | E36: 78.00 | F36: 74.00 | G36: 是
A37: 兴义市猪场坪镇人民政府 | B37: 22321410701党务政务服务中心 | C37: 66.50 | D37: 20240204 | E37: 80.00 | F37: 71.90
A38: 兴义市猪场坪镇人民政府 | B38: 22321410701党务政务服务中心 | C38: 66.83 | D38: 20240203 | E38: 76.80 | F38: 70.82
A39: 兴义市猪场坪镇人民政府 | B39: 22321410702农业农村服务中心（乡村振兴服务中心） | C39: 62.00 | D39: 20240205 | E39: 80.00 | F39: 69.20 | G39: 是
A40: 兴义市猪场坪镇人民政府 | B40: 22321410702农业农村服务中心（乡村振兴服务中心） | C40: 61.00 | D40: 20240206 | E40: 68.40 | F40: 63.96
A41: 兴义市捧乍镇人民政府 | B41: 22321410801农业农村服务中心（乡村振兴服务中心） | C41: 62.00 | D41: 20240207 | E41: 74.20 | F41: 66.88 | G41: 是
A42: 兴义市捧乍镇人民政府 | B42: 22321410802应急管理服务中心 | C42: 68.50 | D42: 20240208 | E42: 79.80 | F42: 73.02 | G42: 是
A43: 兴义市捧乍镇人民政府 | B43: 22321410802应急管理服务中心 | C43: 66.83 | D43: 20240209 | E43: 73.20 | F43: 69.38
A44: 兴义市捧乍镇人民政府 | B44: 22321410803社会事务服务中心 | C44: 75.00 | D44: 20240210 | E44: 75.60 | F44: 75.24 | G44: 是
A45: 兴义市捧乍镇人民政府 | B45: 22321410803社会事务服务中心 | C45: 67.67 | D45: 20240211 | E45: 缺考 | F45: =C45*0.6 -> 40.60
A46: 兴义市七舍镇人民政府 | B46: 22321410901社会事务服务中心 | C46: 67.83 | D46: 20240212 | E46: 缺考 | F46: =C46*0.6 -> 40.70
A47: 兴义市七舍镇人民政府 | B47: 22321410901社会事务服务中心 | C47: 66.00 | D47: 20240213 | E47: 缺考 | F47: =C47*0.6 -> 39.60
A48: 兴义市七舍镇人民政府 | B48: 22321410901社会事务服务中心 | C48: 66.00 | D48: 20240214 | E48: 缺考 | F48: =C48*0.6 -> 39.60
A49: 兴义市七舍镇人民政府 | B49: 22321410901社会事务服务中心 | C49: 66.00 | D49: 20240215 | E49: 缺考 | F49: =C49*0.6 -> 39.60
A50: 兴义市七舍镇人民政府 | B50: 22321410902农业农村服务中心（乡村振兴服务中心） | C50: 71.33 | D50: 20240217 | E50: 71.80 | F50: =(C50*0.6)+(E50*0.4) -> 71.52 | G50: 是
A51: 兴义市七舍镇人民政府 | B51: 22321410902农业农村服务中心（乡村振兴服务中心） | C51: 72.50 | D51: 20240216 | E51: 缺考 | F51: =C51*0.6 -> 43.50
A52: 兴义市鲁布格镇人民政府 | B52: 22321411001社会事务服务中心 | C52: 71.83 | D52: 20240219 | E52: 79.00 | F52: =(C52*0.6)+(E52*0.4) -> 74.70 | G52: 是
A53: 兴义市鲁布格镇人民政府 | B53: 22321411001社会事务服务中心 | C53: 72.33 | D53: 20240218 | E53: 77.80 | F53: =(C53*0.6)+(E53*0.4) -> 74.52 | G53: 是
A54: 兴义市鲁布格镇人民政府 | B54: 22321411001社会事务服务中心 | C54: 71.50 | D54: 20240220 | E54: 77.40 | F54: =(C54*0.6)+(E54*0.4) -> 73.86
A55: 兴义市鲁布格镇人民政府 | B55: 22321411001社会事务服务中心 | C55: 69.67 | D55: 20240221 | E55: 80.00 | F55: =(C55*0.6)+(E55*0.4) -> 73.80
A56: 兴义市鲁布格镇人民政府 | B56: 22321411002应急管理服务中心 | C56: 70.67 | D56: 20240222 | E56: 76.80 | F56: =(C56*0.6)+(E56*0.4) -> 73.12 | G56: 是
A57: 兴义市鲁布格镇人民政府 | B57: 22321411002应急管理服务中心 | C57: 69.00 | D57: 20240223 | E57: 缺考 | F57: =C57*0.6 -> 41.40
A58: 兴义市鲁布格镇人民政府 | B58: 22321411003退役军人服务站 | C58: 66.83 | D58: 20240224 | E58: 缺考 | F58: =C58*0.6 -> 40.10
A59: 兴义市仓更镇人民政府 | B59: 22321411101农业农村服务中心（乡村振兴服务中心） | C59: 73.00 | D59: 20240225 | E59: 79.20 | F59: =(C59*0.6)+(E59*0.4) -> 75.48 | G59: 是
A60: 兴义市仓更镇人民政府 | B60: 22321411101农业农村服务中心（乡村振兴服务中心） | C60: 68.17 | D60: 20240226 | E60: 缺考 | F60: =C60*0.6 -> 40.90
A61: 兴义市仓更镇人民政府 | B61: 22321411103社会治安综合治理中心（网格化管理服务中心） | C61: 70.67 | D61: 20240227 | E61: 80.40 | F61: =(C61*0.6)+(E61*0.4) -> 74.56 | G61: 是
A62: 兴义市仓更镇人民政府 | B62: 22321411103社会治安综合治理中心（网格化管理服务中心） | C62: 67.83 | D62: 20240228 | E62: 73.60 | F62: 70.14
A63: 兴义市雄武乡人民政府 | B63: 22321411201应急管理服务中心 | C63: 71.33 | D63: 20240301 | E63: 80.00 | F63: 74.80 | G63: 是
A64: 兴义市雄武乡人民政府 | B64: 22321411201应急管理服务中心 | C64: 70.83 | D64: 20240302 | E64: 78.00 | F64: 73.70 | G64: 是
A65: 兴义市雄武乡人民政府 | B65: 22321411201应急管理服务中心 | C65: 70.83 | D65: 20240303 | E65: 77.60 | F65: 73.54
A66: 兴义市雄武乡人民政府 | B66: 22321411201应急管理服务中心 | C66: 68.67 | D66: 20240304 | E66: 77.40 | F66: 72.16
A67: 兴义市沧江乡人民政府 | B67: 22321411401农业农村服务中心（乡村振兴服务中心） | C67: 71.17 | D67: 20240305 | E67: 77.20 | F67: 73.58 | G67: 是
A68: 兴义市沧江乡人民政府 | B68: 22321411401农业农村服务中心（乡村振兴服务中心） | C68: 67.17 | D68: 20240306 | E68: 76.00 | F68: 70.70
A69: 兴义市沧江乡人民政府 | B69: 22321411402退役军人服务站 | C69: 79.83 | D69: 20240307 | E69: 75.40 | F69: 78.06 | G69: 是
A70: 兴义市沧江乡人民政府 | B70: 22321411402退役军人服务站 | C70: 66.83 | D70: 20240308 | E70: 缺考 | F70: =C70*0.6 -> 40.10
A71: 兴义市洛万乡人民政府 | B71: 22321411501应急管理服务中心 | C71: 70.00 | D71: 20240309 | E71: 77.80 | F71: =(C71*0.6)+(E71*0.4) -> 73.12 | G71: 是
A72: 兴义市洛万乡人民政府 | B72: 22321411501应急管理服务中心 | C72: 68.67 | D72: 20240310 | E72: 缺考 | F72: =C72*0.6 -> 41.20
A73: 兴义市洛万乡人民政府 | B73: 22321411502社会治安综合治理中心（网格化管理中心） | C73: 79.50 | D73: 20240311 | E73: 82.00 | F73: =(C73*0.6)+(E73*0.4) -> 80.50 | G73: 是
A74: 兴义市洛万乡人民政府 | B74: 22321411502社会治安综合治理中心（网格化管理中心） | C74: 64.17 | D74: 20240312 | E74: 73.20 | F74: 67.78
A75: 兴义市洛万乡人民政府 | B75: 22321411503文化科技创新服务中心（新时代文明实践所) | C75: 72.00 | D75: 20240313 | E75: 77.40 | F75: 74.16 | G75: 是
A76: 兴义市洛万乡人民政府 | B76: 22321411503文化科技创新服务中心（新时代文明实践所) | C76: 70.33 | D76: 20240314 | E76: 76.80 | F76: 72.92
A77: 兴义市洛万乡人民政府 | B77: 22321411504农业农村服务中心（乡村振兴服务中心） | C77: 68.17 | D77: 20240316 | E77: 82.80 | F77: 74.02 | G77: 是
A78: 兴义市洛万乡人民政府 | B78: 22321411504农业农村服务中心（乡村振兴服务中心） | C78: 68.33 | D78: 20240315 | E78: 78.80 | F78: 72.52
A79: 兴义市三江口镇人民政府 | B79: 22321411601农业农村服务中心（乡村振兴服务中心） | C79: 62.33 | D79: 20240317 | E79: 78.40 | F79: 68.76 | G79: 是
A80: 兴义市三江口镇人民政府 | B80: 22321411602农业农村服务中心（乡村振兴服务中心） | C80: 69.17 | D80: 20240318 | E80: 82.60 | F80: 74.54 | G80: 是
A81: 兴义市三江口镇人民政府 | B81: 22321411602农业农村服务中心（乡村振兴服务中心） | C81: 66.50 | D81: 20240319 | E81: 75.00 | F81: 69.90
A82: 兴义市三江口镇人民政府 | B82: 22321411603文化科技创新服务中心（新时代文明实践所） | C82: 66.83 | D82: 20240320 | E82: 75.20 | F82: 70.18 | G82: 是
A83: 兴义市三江口镇人民政府 | B83: 22321411603文化科技创新服务中心（新时代文明实践所） | C83: 63.00 | D83: 20240321 | E83: 80.00 | F83: 69.80
A84: 兴义市三江口镇人民政府 | B84: 22321411604社会治安综合治理中心（网格化管理服务中心） | C84: 62.67 | D84: 20240322 | E84: 77.80 | F84: 68.72 | G84: 是
A85: 兴义市三江口镇人民政府 | B85: 22321411604社会治安综合治理中心（网格化管理服务中心） | C85: 61.33 | D85: 20240323 | E85: 78.80 | F85: 68.32
A86: 黔西南高新技术产业开发区木咱镇人民政府 | B86: 22321411701木咱镇科技宣教文化信息旅游服务中心 | C86: 63.17 | D86: 20240325 | E86: 77.00 | F86: 68.70 | G86: 是
A87: 黔西南高新技术产业开发区木咱镇人民政府 | B87: 22321411701木咱镇科技宣教文化信息旅游服务中心 | C87: 69.83 | D87: 20240324 | E87: 缺考 | F87: =C87*0.6 -> 41.90
A88: 黔西南高新技术产业开发区雨樟镇人民政府 | B88: 22321411801雨樟镇农业服务中心 | C88: 70.33 | D88: 20240327 | E88: 73.40 | F88: =(C88*0.6)+(E88*0.4) -> 71.56 | G88: 是
A89: 黔西南高新技术产业开发区雨樟镇人民政府 | B89: 22321411801雨樟镇农业服务中心 | C89: 70.83 | D89: 20240326 | E89: 缺考 | F89: =C89*0.6 -> 42.50
A90: 黔西南高新技术产业开发区雨樟镇人民政府 | B90: 22321411802雨樟镇林业站 | C90: 70.50 | D90: 20240328 | E90: 80.00 | F90: =(C90*0.6)+(E90*0.4) -> 74.30 | G90: 是
A91: 黔西南高新技术产业开发区雨樟镇人民政府 | B91: 22321411802雨樟镇林业站 | C91: 69.00 | D91: 20240329 | E91: 81.60 | F91: 74.04
A92: 黔西南高新技术产业开发区德卧镇人民政府 | B92: 22321411901德卧镇人力资源和社会保障服务中心 | C92: 69.67 | D92: 20240330 | E92: 80.80 | F92: 74.12 | G92: 是
A93: 黔西南高新技术产业开发区德卧镇人民政府 | B93: 22321411901德卧镇人力资源和社会保障服务中心 | C93: 69.50 | D93: 20240331 | E93: 81.00 | F93: 74.10
A94: 兴义市教育局 | B94: 22321412001初中语文教师 | C94: 71.50 | D94: 20240401 | E94: 82.20 | F94: 75.78 | G94: 是
A95: 兴义市教育局 | B95: 22321412001初中语文教师 | C95: 69.50 | D95: 20240402 | E95: 82.20 | F95: 74.58 | G95: 是
A96: 兴义市教育局 | B96: 22321412001初中语文教师 | C96: 68.83 | D96: 20240404 | E96: 81.80 | F96: 74.02
A97: 兴义市教育局 | B97: 22321412001初中语文教师 | C97: 68.00 | D97: 20240405 | E97: 82.40 | F97: 73.76
A98: 兴义市教育局 | B98: 22321412001初中语文教师 | C98: 69.00 | D98: 20240403 | E98: 80.40 | F98: 73.56
A99: 兴义市教育局 | B99: 22321412001初中语文教师 | C99: 67.17 | D99: 20240406 | E99: 81.80 | F99: 73.02
A100: 兴义市教育局 | B100: 22321412002初中数学教师 | C100: 72.17 | D100: 20240407 | E100: 82.20 | F100: 76.18 | G100: 是
A101: 兴义市教育局 | B101: 22321412002初中数学教师 | C101: 68.50 | D101: 20240411 | E101: 82.20 | F101: 73.98 | G101: 是
A102: 兴义市教育局 | B102: 22321412002初中数学教师 | C102: 69.67 | D102: 20240408 | E102: 78.80 | F102: 73.32
A103: 兴义市教育局 | B103: 22321412002初中数学教师 | C103: 68.00 | D103: 20240412 | E103: 80.20 | F103: 72.88
A104: 兴义市教育局 | B104: 22321412002初中数学教师 | C104: 69.17 | D104: 20240409 | E104: 77.00 | F104: 72.30
A105: 兴义市教育局 | B105: 22321412002初中数学教师 | C105: 68.83 | D105: 20240410 | E105: 76.40 | F105: 71.86
A106: 兴义市教育局 | B106: 22321412003初中英语教师 | C106: 70.67 | D106: 20240414 | E106: 85.40 | F106: 76.56 | G106: 是
A107: 兴义市教育局 | B107: 22321412003初中英语教师 | C107: 72.33 | D107: 20240413 | E107: 79.60 | F107: 75.24 | G107: 是
A108: 兴义市教育局 | B108: 22321412003初中英语教师 | C108: 69.17 | D108: 20240416 | E108: 78.00 | F108: 72.70 | G108: 是
A109: 兴义市教育局 | B109: 22321412003初中英语教师 | C109: 67.67 | D109: 20240418 | E109: 80.20 | F109: 72.68 | G109: 是
A110: 兴义市教育局 | B110: 22321412003初中英语教师 | C110: 65.83 | D110: 20240423 | E110: 81.00 | F110: 71.90
A111: 兴义市教育局 | B111: 22321412003初中英语教师 | C111: 65.83 | D111: 20240424 | E111: 80.80 | F111: 71.82
A112: 兴义市教育局 | B112: 22321412003初中英语教师 | C112: 66.83 | D112: 20240420 | E112: 77.40 | F112: 71.06
A113: 兴义市教育局 | B113: 22321412003初中英语教师 | C113: 69.17 | D113: 20240415 | E113: 73.60 | F113: 70.94
A114: 兴义市教育局 | B114: 22321412003初中英语教师 | C114: 66.00 | D114: 20240422 | E114: 76.00 | F114: 70.00
A115: 兴义市教育局 | B115: 22321412003初中英语教师 | C115: 66.83 | D115: 20240419 | E115: 71.60 | F115: 68.74
A116: 兴义市教育局 | B116: 22321412003初中英语教师 | C116: 68.17 | D116: 20240417 | E116: 缺考 | F116: =C116*0.6 -> 40.90
A117: 兴义市教育局 | B117: 22321412003初中英语教师 | C117: 66.33 | D117: 20240421 | E117: 缺考 | F117: =C117*0.6 -> 39.80
A118: 兴义市教育局 | B118: 22321412004初中物理教师 | C118: 72.17 | D118: 20240501 | E118: 82.40 | F118: =(C118*0.6)+(E118*0.4) -> 76.26 | G118: 是
A119: 兴义市教育局 | B119: 22321412004初中物理教师 | C119: 66.67 | D119: 20240503 | E119: 78.80 | F119: 71.52 | G119: 是
A120: 兴义市教育局 | B120: 22321412004初中物理教师 | C120: 66.67 | D120: 20240504 | E120: 78.60 | F120: 71.44 | G120: 是
A121: 兴义市教育局 | B121: 22321412004初中物理教师 | C121: 69.67 | D121: 20240502 | E121: 73.20 | F121: 71.08 | G121: 是
A122: 兴义市教育局 | B122: 22321412004初中物理教师 | C122: 65.83 | D122: 20240506 | E122: 77.00 | F122: 70.30
A123: 兴义市教育局 | B123: 22321412004初中物理教师 | C123: 62.50 | D123: 20240509 | E123: 79.80 | F123: 69.42
A124: 兴义市教育局 | B124: 22321412004初中物理教师 | C124: 66.17 | D124: 20240505 | E124: 71.00 | F124: 68.10
A125: 兴义市教育局 | B125: 22321412004初中物理教师 | C125: 62.83 | D125: 20240508 | E125: 75.60 | F125: 67.94
A126: 兴义市教育局 | B126: 22321412004初中物理教师 | C126: 65.00 | D126: 20240507 | E126: 71.60 | F126: 67.64
A127: 兴义市教育局 | B127: 22321412005初中化学教师 | C127: 73.83 | D127: 20240510 | E127: 84.20 | F127: 77.98 | G127: 是
A128: 兴义市教育局 | B128: 22321412005初中化学教师 | C128: 67.50 | D128: 20240512 | E128: 78.60 | F128: 71.94
A129: 兴义市教育局 | B129: 22321412005初中化学教师 | C129: 72.17 | D129: 20240511 | E129: 缺考 | F129: =C129*0.6 -> 43.30
A130: 兴义市教育局 | B130: 22321412006初中历史教师 | C130: 67.67 | D130: 20240513 | E130: 84.00 | F130: =(C130*0.6)+(E130*0.4) -> 74.20 | G130: 是
A131: 兴义市教育局 | B131: 22321412006初中历史教师 | C131: 65.67 | D131: 20240515 | E131: 75.20 | F131: 69.48
A132: 兴义市教育局 | B132: 22321412006初中历史教师 | C132: 65.83 | D132: 20240514 | E132: 74.40 | F132: 69.26
A133: 兴义市教育局 | B133: 22321412007初中心理健康教师 | C133: 68.83 | D133: 20240516 | E133: 78.80 | F133: 72.82 | G133: 是
A134: 兴义市教育局 | B134: 22321412007初中心理健康教师 | C134: 66.67 | D134: 20240517 | E134: 79.40 | F134: 71.76
A135: 兴义市教育局 | B135: 22321412007初中心理健康教师 | C135: 65.33 | D135: 20240518 | E135: 73.00 | F135: 68.40
A136: 兴义市教育局 | B136: 22321412008小学语文教师 | C136: 68.67 | D136: 20240520 | E136: 81.40 | F136: 73.76 | G136: 是
A137: 兴义市教育局 | B137: 22321412008小学语文教师 | C137: 64.83 | D137: 20240529 | E137: 85.80 | F137: 73.22 | G137: 是
A138: 兴义市教育局 | B138: 22321412008小学语文教师 | C138: 64.83 | D138: 20240527 | E138: 85.60 | F138: 73.14 | G138: 是
A139: 兴义市教育局 | B139: 22321412008小学语文教师 | C139: 64.83 | D139: 20240526 | E139: 84.20 | F139: 72.58 | G139: 是
A140: 兴义市教育局 | B140: 22321412008小学语文教师 | C140: 65.67 | D140: 20240524 | E140: 81.00 | F140: 71.80
A141: 兴义市教育局 | B141: 22321412008小学语文教师 | C141: 64.50 | D141: 20240530 | E141: 81.00 | F141: 71.10
A142: 兴义市教育局 | B142: 22321412008小学语文教师 | C142: 65.00 | D142: 20240525 | E142: 78.80 | F142: 70.52
A143: 兴义市教育局 | B143: 22321412008小学语文教师 | C143: 64.83 | D143: 20240528 | E143: 79.00 | F143: 70.50
A144: 兴义市教育局 | B144: 22321412008小学语文教师 | C144: 66.00 | D144: 20240523 | E144: 76.80 | F144: 70.32
A145: 兴义市教育局 | B145: 22321412008小学语文教师 | C145: 66.00 | D145: 20240522 | E145: 75.00 | F145: 69.60
A146: 兴义市教育局 | B146: 22321412008小学语文教师 | C146: 66.50 | D146: 20240521 | E146: 74.20 | F146: 69.58
A147: 兴义市教育局 | B147: 22321412008小学语文教师 | C147: 71.67 | D147: 20240519 | E147: 缺考 | F147: =C147*0.6 -> 43.00
A148: 兴义市教育局 | B148: 22321412009小学数学教师 | C148: 71.83 | D148: 20240603 | E148: 84.00 | F148: =(C148*0.6)+(E148*0.4) -> 76.70 | G148: 是
A149: 兴义市教育局 | B149: 22321412009小学数学教师 | C149: 73.17 | D149: 20240601 | E149: 78.80 | F149: 75.42 | G149: 是
A150: 兴义市教育局 | B150: 22321412009小学数学教师 | C150: 67.67 | D150: 20240607 | E150: 86.60 | F150: 75.24 | G150: 是
A151: 兴义市教育局 | B151: 22321412009小学数学教师 | C151: 67.67 | D151: 20240606 | E151: 85.80 | F151: 74.92 | G151: 是
A152: 兴义市教育局 | B152: 22321412009小学数学教师 | C152: 72.00 | D152: 20240602 | E152: 79.20 | F152: 74.88 | G152: 是
A153: 兴义市教育局 | B153: 22321412009小学数学教师 | C153: 70.00 | D153: 20240604 | E153: 79.60 | F153: 73.84 | G153: 是
A154: 兴义市教育局 | B154: 22321412009小学数学教师 | C154: 67.17 | D154: 20240611 | E154: 83.80 | F154: 73.82
A155: 兴义市教育局 | B155: 22321412009小学数学教师 | C155: 67.67 | D155: 20240608 | E155: 80.20 | F155: 72.68
A156: 兴义市教育局 | B156: 22321412009小学数学教师 | C156: 66.17 | D156: 20240615 | E156: 81.60 | F156: 72.34
A157: 兴义市教育局 | B157: 22321412009小学数学教师 | C157: 67.50 | D157: 20240609 | E157: 78.80 | F157: 72.02
A158: 兴义市教育局 | B158: 22321412009小学数学教师 | C158: 66.67 | D158: 20240613 | E158: 79.60 | F158: 71.84
A159: 兴义市教育局 | B159: 22321412009小学数学教师 | C159: 68.17 | D159: 20240605 | E159: 76.40 | F159: 71.46
A160: 兴义市教育局 | B160: 22321412009小学数学教师 | C160: 65.67 | D160: 20240616 | E160: 79.00 | F160: 71.00
A161: 兴义市教育局 | B161: 22321412009小学数学教师 | C161: 66.50 | D161: 20240614 | E161: 77.60 | F161: 70.94
A162: 兴义市教育局 | B162: 22321412009小学数学教师 | C162: 66.83 | D162: 20240612 | E162: 76.40 | F162: 70.66
A163: 兴义市教育局 | B163: 22321412009小学数学教师 | C163: 65.50 | D163: 20240617 | E163: 76.40 | F163: 69.86
A164: 兴义市教育局 | B164: 22321412009小学数学教师 | C164: 67.17 | D164: 20240610 | E164: 73.80 | F164: 69.82
A165: 兴义市教育局 | B165: 22321412009小学数学教师 | C165: 65.17 | D165: 20240620 | E165: 76.20 | F165: 69.58
A166: 兴义市教育局 | B166: 22321412009小学数学教师 | C166: 65.17 | D166: 20240619 | E166: 75.20 | F166: 69.18
A167: 兴义市教育局 | B167: 22321412009小学数学教师 | C167: 65.17 | D167: 20240618 | E167: 缺考 | F167: =C167*0.6 -> 39.10
A168: 兴义市教育局 | B168: 22321412010小学英语教师 | C168: 68.67 | D168: 20240621 | E168: 85.00 | F168: =(C168*0.6)+(E168*0.4) -> 75.20 | G168: 是
A169: 兴义市教育局 | B169: 22321412010小学英语教师 | C169: 68.67 | D169: 20240622 | E169: 80.20 | F169: 73.28 | G169: 是
A170: 兴义市教育局 | B170: 22321412010小学英语教师 | C170: 65.83 | D170: 20240624 | E170: 83.20 | F170: 72.78
A171: 兴义市教育局 | B171: 22321412010小学英语教师 | C171: 67.50 | D171: 20240623 | E171: 78.60 | F171: 71.94
A172: 兴义市教育局 | B172: 22321412010小学英语教师 | C172: 65.17 | D172: 20240625 | E172: 80.00 | F172: 71.10
A173: 兴义市教育局 | B173: 22321412010小学英语教师 | C173: 65.00 | D173: 20240626 | E173: 74.40 | F173: 68.76
A174: 兴义市教育局 | B174: 22321412011小学音乐教师 | C174: 64.50 | D174: 20240627 | E174: 81.20 | F174: 71.18 | G174: 是
A175: 兴义市教育局 | B175: 22321412012小学体育教师 | C175: 61.00 | D175: 20240628 | E175: 73.60 | F175: 66.04 | G175: 是
A176: 兴义市教育局 | B176: 22321412013小学美术教师 | C176: 63.83 | D176: 20240701 | E176: 88.00 | F176: 73.50 | G176: 是
A177: 兴义市教育局 | B177: 22321412013小学美术教师 | C177: 63.50 | D177: 20240702 | E177: 84.40 | F177: 71.86 | G177: 是
A178: 兴义市教育局 | B178: 22321412013小学美术教师 | C178: 63.00 | D178: 20240703 | E178: 84.80 | F178: 71.72
A179: 兴义市教育局 | B179: 22321412013小学美术教师 | C179: 62.17 | D179: 20240705 | E179: 83.80 | F179: 70.82
A180: 兴义市教育局 | B180: 22321412013小学美术教师 | C180: 61.50 | D180: 20240706 | E180: 77.80 | F180: 68.02
A181: 兴义市教育局 | B181: 22321412013小学美术教师 | C181: 62.50 | D181: 20240704 | E181: 71.80 | F181: 66.22
A182: 兴义市教育局 | B182: 22321412014小学信息技术教师 | C182: 65.00 | D182: 20240708 | E182: 88.00 | F182: 74.20 | G182: 是
A183: 兴义市教育局 | B183: 22321412014小学信息技术教师 | C183: 64.33 | D183: 20240709 | E183: 75.80 | F183: 68.92
A184: 兴义市教育局 | B184: 22321412014小学信息技术教师 | C184: 69.17 | D184: 20240707 | E184: 缺考 | F184: =C184*0.6 -> 41.50
A185: 兴义市教育局 | B185: 22321412015小学心理健康教师 | C185: 72.00 | D185: 20240710 | E185: 85.20 | F185: =(C185*0.6)+(E185*0.4) -> 77.28 | G185: 是
A186: 兴义市教育局 | B186: 22321412015小学心理健康教师 | C186: 63.50 | D186: 20240714 | E186: 89.80 | F186: 74.02 | G186: 是
A187: 兴义市教育局 | B187: 22321412015小学心理健康教师 | C187: 65.33 | D187: 20240711 | E187: 83.80 | F187: 72.72
A188: 兴义市教育局 | B188: 22321412015小学心理健康教师 | C188: 62.67 | D188: 20240715 | E188: 87.00 | F188: 72.40
A189: 兴义市教育局 | B189: 22321412015小学心理健康教师 | C189: 64.17 | D189: 20240712 | E189: 78.40 | F189: 69.86
A190: 兴义市教育局 | B190: 22321412015小学心理健康教师 | C190: 63.67 | D190: 20240713 | E190: 77.80 | F190: 69.32
A191: 兴义市教育局 | B191: 22321412016幼儿园教师 | C191: 64.50 | D191: 20240719 | E191: 90.60 | F191: 74.94 | G191: 是
A192: 兴义市教育局 | B192: 22321412016幼儿园教师 | C192: 71.67 | D192: 20240716 | E192: 79.00 | F192: 74.60 | G192: 是
A193: 兴义市教育局 | B193: 22321412016幼儿园教师 | C193: 65.83 | D193: 20240717 | E193: 85.40 | F193: 73.66 | G193: 是
A194: 兴义市教育局 | B194: 22321412016幼儿园教师 | C194: 62.33 | D194: 20240726 | E194: 87.60 | F194: 72.44 | G194: 是
A195: 兴义市教育局 | B195: 22321412016幼儿园教师 | C195: 64.67 | D195: 20240718 | E195: 83.60 | F195: 72.24 | G195: 是
A196: 兴义市教育局 | B196: 22321412016幼儿园教师 | C196: 63.33 | D196: 20240720 | E196: 85.40 | F196: 72.16
A197: 兴义市教育局 | B197: 22321412016幼儿园教师 | C197: 62.83 | D197: 20240721 | E197: 85.00 | F197: 71.70
A198: 兴义市教育局 | B198: 22321412016幼儿园教师 | C198: 62.67 | D198: 20240722 | E198: 82.60 | F198: 70.64
A199: 兴义市教育局 | B199: 22321412016幼儿园教师 | C199: 62.00 | D199: 20240729 | E199: 82.60 | F199: 70.24
A200: 兴义市教育局 | B200: 22321412016幼儿园教师 | C200: 60.83 | D200: 20240730 | E200: 84.20 | F200: 70.18
... 5 more rows
